bitfinex/quotes_SOLUSD_20240912
["timestamp","ask_amount","ask_price","bid_price","bid_amount"]
[1726158414204,0.247778,134.59,134.56,14.87174205]
[1726158415084,0.247778,134.59,134.54,30.09514205]
[1726158415783,0.247778,134.59,134.55,3.89190785]
[1726158416890,0.247778,134.59,134.56,3.89190785]
[1726158417099,0.247778,134.59,134.54,14.87174205]
[1726158418093,0.247778,134.59,134.52,14.87174205]
[1726158419291,0.247778,134.59,134.54,14.87174205]
[1726158420770,0.247778,134.59,134.56,14.87174205]
[1726158421569,0.247778,134.59,134.54,14.87174205]
[1726158423300,0.247778,134.59,134.51,15.2171]
[1726158423596,0.247778,134.59,134.55,14.87174205]
[1726158428104,0.247778,134.59,134.53,14.87174205]
[1726158432904,40.195084,134.58,134.48,16.58899434]
[1726158433091,40.195084,134.58,134.48,15.2938]
[1726158433092,23.776884,134.56,134.48,15.2938]
[1726158433419,8.63661497,134.57,134.47,22.65092436]
[1726158433420,23.776884,134.54,134.47,14.87174205]
[1726158434140,23.776884,134.54,134.45,24.61995642]
[1726158434319,23.776884,134.52,134.45,15.541578]
[1726158434833,23.776884,134.5,134.45,0.247778]
[1726158438623,6.0587,134.51,134.45,1.05197816]
[1726158438795,6.0587,134.51,134.46,14.87174205]
[1726158439004,6.0587,134.51,134.45,0.247778]
[1726158439005,16.662,134.53,134.48,14.87174205]
[1726158440412,6.2783,134.55,134.48,14.87174205]
[1726158440703,6.2783,134.55,134.49,1.4861598]
[1726158441032,6.2783,134.55,134.48,14.87174205]
[1726158442017,6.2783,134.55,134.5,14.87174205]
[1726158442248,15.5052,134.57,134.5,14.87174205]
[1726158442520,15.5052,134.57,134.48,15.7594]
[1726158442521,17.36310087,134.57,134.48,15.7594]
[1726158442838,15.5052,134.57,134.5,14.87174205]
[1726158443552,23.776884,134.56,134.5,14.87174205]
[1726158446463,25.63497265,134.56,134.5,14.87174205]
[1726158448534,25.63497265,134.56,134.48,30.63114205]
[1726158448848,0.25098,134.55,134.48,30.63114205]
[1726158449269,23.776884,134.56,134.48,30.63114205]
[1726158450070,0.12549,134.55,134.48,14.87174205]
[1726158452249,23.776884,134.56,134.48,14.87174205]
[1726158453139,23.776884,134.54,134.45,16.591478]
[1726158453334,23.776884,134.54,134.48,14.87174205]
[1726158453534,23.776884,134.54,134.49,0.67436685]
[1726158454161,23.776884,134.54,134.48,14.87174205]
[1726158454751,0.12549,134.53,134.48,14.87174205]
[1726158455066,23.776884,134.51,134.45,0.247778]
[1726158457141,25.6357867,134.51,134.45,0.247778]
[1726158457335,6.581,134.5,134.45,0.247778]
[1726158457966,6.581,134.5,134.46,14.87174205]
[1726158458142,6.581,134.5,134.47,0.47680814]
[1726158459172,6.581,134.5,134.45,0.247778]
[1726158459467,25.63595675,134.49,134.45,0.247778]
[1726158459641,23.776884,134.49,134.45,0.247778]
[1726158460747,25.63605761,134.49,134.45,0.247778]
[1726158464188,23.776884,134.49,134.45,0.247778]
[1726158464347,25.63605893,134.49,134.45,0.247778]
[1726158465278,23.776884,134.49,134.45,0.247778]
[1726158467244,1.85918257,134.48,134.45,0.247778]
[1726158467452,23.776884,134.47,134.45,0.247778]
[1726158469365,23.776884,134.48,134.45,0.247778]
[1726158469667,39.715884,134.48,134.45,0.247778]
[1726158469874,0.25098,134.47,134.45,0.247778]
[1726158472658,23.776884,134.46,134.45,0.247778]
[1726158472970,24.027864,134.46,134.45,0.247778]
[1726158473941,30.117464,134.46,134.45,0.247778]
[1726158482258,6.34058,134.46,134.45,0.247778]
[1726158482470,6.21509,134.46,134.45,0.247778]
[1726158482679,15.939,134.48,134.45,0.247778]
[1726158482904,0.25098,134.46,134.45,0.247778]
[1726158483880,23.776884,134.47,134.45,0.247778]
[1726158484079,25.63649529,134.46,134.45,0.247778]
[1726158484283,23.776884,134.46,134.45,0.247778]
[1726158484869,25.63646102,134.46,134.45,0.247778]
[1726158485069,25.88744102,134.46,134.45,0.247778]
[1726158488286,32.58084102,134.46,134.45,0.247778]
[1726158488467,52.58084102,134.46,134.45,0.247778]
[1726158491377,50.721264,134.46,134.45,0.247778]
[1726158491784,52.5815074,134.46,134.45,0.247778]
[1726158491977,50.721264,134.46,134.45,0.247778]
[1726158492969,44.027864,134.46,134.45,0.247778]
[1726158493565,52.58126409,134.46,134.45,0.247778]
[1726158494792,50.721264,134.46,134.45,0.247778]
[1726158498504,52.58139755,134.46,134.45,0.247778]
[1726158498707,50.721264,134.46,134.45,0.247778]
[1726158499888,52.58140664,134.46,134.45,0.247778]
[1726158501492,50.721264,134.46,134.45,0.247778]
[1726158504688,23.776884,134.43,134.41,0.247778]
[1726158504914,0.25098,134.42,134.41,0.247778]
[1726158509017,2.11131159,134.42,134.41,0.247778]
[1726158509229,25.88819559,134.42,134.41,0.247778]
[1726158510644,25.88819559,134.42,134.37,0.247778]
[1726158510646,6.6962,134.41,134.37,0.247778]
[1726158510932,45.88853833,134.42,134.37,0.247778]
[1726158510933,23.776884,134.39,134.37,0.247778]
[1726158511128,25.88875435,134.38,134.37,0.247778]
[1726158511338,24.027864,134.38,134.37,0.247778]
[1726158513811,23.902374,134.38,134.37,0.247778]
[1726158514012,23.776884,134.38,134.37,0.247778]
[1726158514315,20.0,134.42,134.37,0.247778]
[1726158515228,20.0,134.43,134.37,0.247778]
[1726158515430,20.0,134.44,134.37,0.247778]
[1726158515736,6.694,134.45,134.38,15.164]
[1726158515921,1.86019319,134.44,134.38,15.164]
[1726158516535,8.55479319,134.44,134.38,15.164]
[1726158516940,30.472184,134.43,134.38,15.164]
[1726158517122,23.776884,134.41,134.38,15.164]
[1726158517332,23.776884,134.39,134.38,15.164]
[1726158519846,23.776884,134.39,134.37,0.247778]
[1726158520051,25.6375425,134.38,134.37,0.247778]
[1726158520866,23.776884,134.38,134.37,0.247778]
[1726158522328,6.6945,134.44,134.37,0.247778]
[1726158522524,25.63718156,134.43,134.37,0.247778]
[1726158523256,1.86029942,134.42,134.37,0.247778]
[1726158523438,23.776884,134.41,134.37,0.247778]
[1726158523637,1.86039582,134.4,134.37,0.247778]
[1726158523832,23.776884,134.39,134.37,0.247778]
[1726158524561,23.776884,134.38,134.37,0.247778]
[1726158524762,25.63751755,134.38,134.37,0.247778]
[1726158524957,23.776884,134.38,134.37,0.247778]
[1726158533068,24.027864,134.38,134.37,0.247778]
[1726158534862,30.725264,134.38,134.37,0.247778]
[1726158535069,50.725264,134.38,134.37,0.247778]
[1726158535292,52.58653617,134.38,134.37,0.247778]
[1726158537876,50.725264,134.38,134.37,0.247778]
[1726158542598,73.075264,134.38,134.37,0.247778]
[1726158543197,50.725264,134.38,134.37,0.247778]
[1726158544402,52.58642177,134.38,134.37,0.247778]
[1726158547197,73.075264,134.38,134.37,0.247778]
[1726158548309,74.93660995,134.38,134.37,0.247778]
[1726158548600,74.93660995,134.38,134.33,0.247778]
[1726158548601,6.6989,134.36,134.33,0.247778]
[1726158548798,23.776884,134.34,134.33,0.247778]
[1726158548996,24.027864,134.34,134.33,0.247778]
[1726158556489,25.88924709,134.34,134.33,0.247778]
[1726158557518,24.027864,134.34,134.33,0.247778]
[1726158563913,20.0,134.38,134.33,0.247778]
[1726158564211,26.6975,134.38,134.33,0.247778]
[1726158565298,24.027864,134.37,134.33,0.247778]
[1726158565595,23.776884,134.35,134.33,0.247778]
[1726158566022,25.63818134,134.34,134.33,0.247778]
[1726158566318,23.776884,134.34,134.33,0.247778]
[1726158567114,24.027864,134.34,134.33,0.247778]
[1726158573334,30.727264,134.34,134.33,0.247778]
[1726158573499,32.58871156,134.34,134.33,0.247778]
[1726158573922,52.58871156,134.34,134.33,0.247778]
[1726158574325,74.93871156,134.34,134.33,0.247778]
[1726158592527,73.077264,134.34,134.33,0.247778]
[1726158596164,6.7004,134.32,134.29,0.247778]
[1726158596465,23.776884,134.3,134.29,0.247778]
[1726158596665,24.027864,134.3,134.29,0.247778]
[1726158602385,23.776884,134.3,134.29,0.247778]
[1726158602680,26.6992,134.35,134.29,0.247778]
[1726158603053,1.86166278,134.34,134.29,0.247778]
[1726158603274,6.7003,134.33,134.29,0.247778]
[1726158603576,1.86194791,134.32,134.29,0.247778]
[1726158603763,23.776884,134.32,134.29,0.247778]
[1726158603965,0.25098,134.31,134.29,0.247778]
[1726158604273,20.0,134.37,134.29,0.247778]
[1726158605076,20.0,134.35,134.29,0.247778]
[1726158605278,1.86156546,134.34,134.29,0.247778]
[1726158605464,6.6999,134.33,134.29,0.247778]
[1726158605773,23.776884,134.31,134.29,0.247778]
[1726158606884,24.027864,134.32,134.29,0.247778]
[1726158607589,0.25098,134.32,134.29,0.247778]
[1726158607998,23.776884,134.31,134.29,0.247778]
[1726158608290,0.25098,134.3,134.29,0.247778]
[1726158608689,0.12549,134.3,134.29,0.247778]
[1726158608865,23.776884,134.31,134.29,0.247778]
[1726158609072,23.902374,134.32,134.29,0.247778]
[1726158609269,0.12549,134.31,134.29,0.247778]
[1726158609769,23.902374,134.32,134.29,0.247778]
[1726158610875,1.86166756,134.31,134.29,0.247778]
[1726158611073,23.776884,134.3,134.29,0.247778]
[1726158611666,24.027864,134.3,134.29,0.247778]
[1726158615773,23.776884,134.3,134.29,0.247778]
[1726158617779,20.0,134.35,134.29,0.247778]
[1726158617980,24.027864,134.34,134.29,0.247778]
[1726158618201,23.776884,134.32,134.29,0.247778]
[1726158618501,0.25098,134.31,134.29,0.247778]
[1726158618669,23.776884,134.32,134.29,0.247778]
[1726158618868,2.11264922,134.31,134.29,0.247778]
[1726158619080,23.776884,134.3,134.29,0.247778]
[1726158620283,24.027864,134.3,134.29,0.247778]
[1726158621603,25.88995098,134.3,134.29,0.247778]
[1726158623492,32.59135098,134.3,134.29,0.247778]
[1726158625495,24.027864,134.3,134.29,0.247778]
[1726158626212,22.35,134.33,134.29,0.247778]
[1726158626410,20.0,134.32,134.29,0.247778]
[1726158626712,1.86205556,134.31,134.29,0.247778]
[1726158627502,23.776884,134.3,134.29,0.247778]
[1726158627689,24.027864,134.3,134.29,0.247778]
[1726158629601,23.776884,134.3,134.29,0.247778]
[1726158630911,23.902374,134.3,134.29,0.247778]
[1726158631213,24.027864,134.3,134.29,0.247778]
[1726158633717,7.30293004,134.35,134.29,0.247778]
[1726158634089,6.6984,134.36,134.29,0.247778]
[1726158634697,29.0481,134.37,134.29,0.247778]
[1726158634891,42.35,134.36,134.29,0.247778]
[1726158635622,0.12549,134.35,134.29,0.247778]
[1726158636089,38.37585401,134.38,134.29,0.247778]
[1726158636300,31.67835401,134.38,134.31,6.3385]
[1726158636594,7.30293004,134.39,134.32,15.9698]
[1726158636999,8.55806722,134.39,134.32,15.9698]
[1726158637705,24.027864,134.38,134.32,15.9698]
[1726158637927,30.725364,134.38,134.32,15.9698]
[1726158638133,30.475284,134.36,134.29,15.844378]
[1726158638421,6.2199,134.39,134.3,14.87174205]
[1726158638625,20.0,134.39,134.3,14.87174205]
[1726158638923,26.6971,134.39,134.3,14.87174205]
[1726158639230,28.5582265,134.39,134.3,14.87174205]
[1726158639929,24.027864,134.38,134.3,14.87174205]
[1726158640135,23.776884,134.36,134.3,14.87174205]
[1726158640425,1.86106175,134.35,134.3,14.87174205]
[1726158640622,24.027864,134.38,134.32,14.87174205]
[1726158640923,24.027864,134.38,134.32,21.46174205]
[1726158641439,23.776884,134.36,134.32,6.59]
[1726158642402,23.776884,134.36,134.32,21.46174205]
[1726158644550,1.86106872,134.35,134.32,21.46174205]
[1726158645348,1.86106872,134.35,134.32,6.59]
[1726158646350,23.776884,134.36,134.32,6.59]
[1726158646647,0.25098,134.38,134.32,21.46174205]
[1726158646942,23.776884,134.37,134.32,21.46174205]
[1726158647247,2.11205923,134.36,134.32,21.46174205]
[1726158647426,1.86108252,134.35,134.32,21.46174205]
[1726158648354,2.11205935,134.36,134.32,21.46174205]
[1726158649451,0.25098,134.36,134.32,21.46174205]
[1726158651740,0.12549,134.36,134.32,21.46174205]
[1726158655066,23.776884,134.35,134.3,15.5966]
[1726158655234,23.776884,134.33,134.3,15.5966]
[1726158655548,0.25098,134.34,134.3,30.46834205]
[1726158656056,23.776884,134.35,134.3,30.46834205]
[1726158656353,1.86119994,134.34,134.3,15.5966]
[1726158656542,24.027864,134.33,134.3,15.5966]
[1726158656750,23.776884,134.33,134.3,15.5966]
[1726158657149,1.86146783,134.32,134.3,15.5966]
[1726158657957,23.776884,134.31,134.29,0.247778]
[1726158658144,25.88970915,134.3,134.29,0.247778]
[1726158659056,24.027864,134.3,134.29,0.247778]
[1726158659250,23.902374,134.3,134.29,0.247778]
[1726158659562,23.776884,134.33,134.29,0.247778]
[1726158659741,0.12549,134.32,134.29,0.247778]
[1726158660639,23.776884,134.33,134.29,15.11952005]
[1726158660952,20.0,134.37,134.29,21.34462005]
[1726158661341,6.6974,134.38,134.29,21.34462005]
[1726158662146,30.474784,134.37,134.29,21.34462005]
[1726158662426,0.12549,134.36,134.29,21.34462005]
[1726158662627,23.776884,134.35,134.29,21.34462005]
[1726158662932,23.776884,134.33,134.29,21.34462005]
[1726158665958,23.776884,134.33,134.29,6.472878]
[1726158666145,0.12549,134.32,134.29,6.472878]
[1726158666537,1.98706827,134.32,134.29,6.472878]
[1726158666737,1.98706827,134.32,134.29,0.247778]
[1726158666928,23.776884,134.31,134.29,0.247778]
[1726158667134,1.86164753,134.32,134.29,0.247778]
[1726158667349,23.776884,134.34,134.29,0.247778]
[1726158667551,0.25098,134.33,134.29,0.247778]
[1726158667759,20.0,134.36,134.29,0.247778]
[1726158667955,24.027864,134.35,134.29,0.247778]
[1726158668541,6.6969,134.39,134.32,14.87174205]
[1726158668844,6.0166,134.41,134.34,14.87174205]
[1726158669245,6.6955,134.42,134.34,14.87174205]
[1726158669456,6.942778,134.43,134.34,14.87174205]
[1726158669761,29.292778,134.43,134.34,14.87174205]
[1726158670248,29.292778,134.43,134.35,1.48709417]
[1726158670960,20.0,134.42,134.35,1.48709417]
[1726158671375,0.247778,134.43,134.35,1.48709417]
[1726158672761,0.25098,134.42,134.35,1.48709417]
[1726158673958,0.247778,134.43,134.36,23.2378]
[1726158674159,0.247778,134.43,134.37,23.3124026]
[1726158675153,0.247778,134.43,134.37,23.6424026]
[1726158675351,0.247778,134.43,134.39,23.3124026]
[1726158675740,0.247778,134.43,134.41,23.3124026]
[1726158675940,0.247778,134.43,134.42,1.11893514]
[1726158676466,4.0984864,134.47,134.42,24.06123514]
[1726158676467,0.247778,134.47,134.42,24.06123514]
[1726158676659,0.247778,134.47,134.43,23.3124026]
[1726158677666,0.247778,134.47,134.42,22.9423]
[1726158678673,24.027864,134.46,134.42,22.9423]
[1726158680056,0.25098,134.46,134.42,22.9423]
[1726158682472,0.247778,134.47,134.42,22.9423]
[1726158683880,0.25098,134.46,134.42,22.9423]
[1726158684063,23.776884,134.45,134.42,22.9423]
[1726158684489,1.85980683,134.44,134.42,16.5076]
[1726158684673,23.776884,134.45,134.42,16.5076]
[1726158684987,0.25098,134.44,134.42,16.5076]
[1726158686072,0.25098,134.44,134.39,22.6943]
[1726158686073,23.776884,134.43,134.39,22.6943]
[1726158686266,1.86002226,134.42,134.39,22.6943]
[1726158686889,23.776884,134.43,134.39,22.6943]
[1726158687883,30.471884,134.43,134.34,15.1123]
[1726158688081,23.776884,134.41,134.34,15.1123]
[1726158689376,23.902374,134.44,134.36,23.3124026]
[1726158689576,0.12549,134.43,134.36,23.3124026]
[1726158691296,6.940778,134.47,134.36,23.3124026]
[1726158691604,1.85981837,134.46,134.37,22.2116]
[1726158691897,6.6937,134.46,134.37,22.2116]
[1726158692301,1.86004683,134.45,134.37,22.2116]
[1726158692493,23.776884,134.45,134.37,22.2116]
[1726158692679,0.25098,134.44,134.37,22.2116]
[1726158694479,23.776884,134.43,134.37,22.2116]
[1726158694678,1.8601632,134.42,134.37,22.2116]
[1726158695083,1.86015814,134.42,134.37,22.2116]
[1726158695384,23.776884,134.43,134.37,22.2116]
[1726158695596,0.25098,134.42,134.37,22.2116]
[1726158697077,23.776884,134.45,134.37,22.2116]
[1726158697408,0.25098,134.44,134.37,22.2116]
[1726158697707,0.12549,134.44,134.37,22.2116]
[1726158697905,1.98550894,134.44,134.37,22.2116]
[1726158698101,23.776884,134.43,134.37,22.2116]
[1726158699483,23.902374,134.44,134.37,22.2116]
[1726158701289,0.12549,134.43,134.37,22.2116]
[1726158701509,1.98563517,134.43,134.37,22.2116]
[1726158701701,1.8600961,134.42,134.37,22.2116]
[1726158702003,23.776884,134.41,134.37,22.2116]
[1726158702584,0.12549,134.43,134.37,22.2116]
[1726158702886,24.027864,134.44,134.37,22.2116]
[1726158703708,0.25098,134.44,134.37,22.2116]
[1726158704810,23.776884,134.42,134.37,22.2116]
[1726158704983,1.86019547,134.41,134.37,22.2116]
[1726158706005,23.776884,134.43,134.37,22.2116]
[1726158706204,1.86019494,134.42,134.37,22.2116]
[1726158706711,23.776884,134.41,134.37,22.2116]
[1726158706895,1.86037163,134.4,134.37,22.2116]
[1726158707999,23.776884,134.43,134.37,22.2116]
[1726158708223,0.25098,134.42,134.37,22.2116]
[1726158708400,23.776884,134.41,134.37,22.2116]
[1726158708911,25.88824863,134.42,134.37,22.2116]
[1726158709394,24.027864,134.42,134.37,22.2116]
[1726158709600,0.25098,134.42,134.37,22.2116]
[1726158713587,30.472784,134.41,134.37,15.8511]
[1726158713792,23.776884,134.39,134.37,15.8511]
[1726158714015,23.776884,134.39,134.33,6.612378]
[1726158714016,23.776884,134.37,134.33,22.878278]
[1726158714189,1.98645712,134.36,134.33,16.513678]
[1726158714395,1.86107817,134.35,134.33,16.513678]
[1726158715096,23.902374,134.34,134.33,0.247778]
[1726158715401,24.027864,134.34,134.33,0.247778]
[1726158721227,23.902374,134.34,134.33,0.247778]
[1726158721530,20.0,134.37,134.33,0.247778]
[1726158721823,21.86130044,134.37,134.33,0.247778]
[1726158722237,20.0,134.39,134.33,0.247778]
[1726158722419,20.0,134.41,134.33,0.247778]
[1726158723128,20.0,134.39,134.33,0.247778]
[1726158723422,6.696,134.41,134.33,0.247778]
[1726158723729,1.86091219,134.4,134.33,0.247778]
[1726158723907,11.1892662,134.4,134.33,0.247778]
[1726158724229,1.86124573,134.39,134.33,0.247778]
[1726158724726,24.027864,134.38,134.33,0.247778]
[1726158724933,23.776884,134.36,134.33,0.247778]
[1726158725107,23.776884,134.34,134.33,0.247778]
[1726158725310,24.027864,134.34,134.33,0.247778]
[1726158726597,73.107264,134.34,134.33,0.247778]
[1726158727128,44.027864,134.34,134.33,0.247778]
[1726158728022,52.58897343,134.34,134.33,0.247778]
[1726158728424,44.027864,134.34,134.33,0.247778]
[1726158728802,52.58897428,134.34,134.33,0.247778]
[1726158729198,74.96897428,134.34,134.33,0.247778]
[1726158731147,68.26957428,134.34,134.33,0.247778]
[1726158731632,66.407864,134.34,134.33,0.247778]
[1726158731833,73.107264,134.34,134.33,0.247778]
[1726158732711,73.107264,134.34,134.29,0.247778]
[1726158732712,6.7005,134.32,134.29,0.247778]
[1726158732911,25.88984132,134.31,134.29,0.247778]
[1726158733833,32.59074132,134.31,134.29,0.247778]
[1726158734238,30.478284,134.3,134.29,0.247778]
[1726158734531,24.027864,134.3,134.29,0.247778]
[1726158734715,25.88997894,134.3,134.29,0.247778]
[1726158735516,24.027864,134.3,134.29,0.247778]
[1726158737838,23.776884,134.3,134.29,0.247778]
[1726158738425,42.38,134.34,134.29,0.247778]
[1726158739429,49.0795,134.34,134.29,0.247778]
[1726158739810,23.902374,134.33,134.29,0.247778]
[1726158740319,0.12549,134.32,134.29,0.247778]
[1726158741535,23.776884,134.31,134.29,0.247778]
[1726158741704,25.63867556,134.3,134.29,0.247778]
[1726158742335,23.902374,134.3,134.29,0.247778]
[1726158742544,24.027864,134.3,134.29,0.247778]
[1726158744515,25.88999165,134.3,134.29,0.247778]
[1726158744720,25.88999596,134.3,134.29,0.247778]
[1726158745615,23.776884,134.3,134.29,0.247778]
[1726158746123,24.027864,134.3,134.29,0.247778]
[1726158749038,46.407864,134.3,134.29,0.247778]
[1726158749333,24.027864,134.3,134.29,0.247778]
[1726158751836,48.27000827,134.3,134.29,0.247778]
[1726158752422,68.27000827,134.3,134.29,0.247778]
[1726158753444,74.97140827,134.3,134.29,0.247778]
[1726158754814,73.109264,134.3,134.29,0.247778]
[1726158756848,74.97201437,134.3,134.29,0.247778]
[1726158757145,73.109264,134.3,134.29,0.247778]
[1726158758344,73.109264,134.3,134.25,0.247778]
[1726158758345,29.083,134.27,134.25,0.247778]
[1726158758551,24.027864,134.26,134.25,0.247778]
[1726158759037,53.111264,134.26,134.25,0.247778]
[1726158761037,46.407864,134.26,134.25,0.247778]
[1726158761526,53.111264,134.26,134.25,0.247778]
[1726158764735,46.407864,134.26,134.25,0.247778]
[1726158766249,53.111264,134.26,134.25,0.247778]
[1726158766454,46.407864,134.26,134.25,0.247778]
[1726158766831,53.111264,134.26,134.25,0.247778]
[1726158768751,73.111264,134.26,134.25,0.247778]
[1726158769671,22.50549,134.26,134.25,0.247778]
[1726158769837,0.12549,134.26,134.25,0.247778]
[1726158770943,23.902374,134.26,134.25,0.247778]
[1726158771141,24.027864,134.26,134.25,0.247778]
[1726158773935,25.89050477,134.26,134.25,0.247778]
[1726158774140,24.027864,134.26,134.25,0.247778]
[1726158774660,25.89050492,134.26,134.25,0.247778]
[1726158776455,25.76501492,134.26,134.25,0.247778]
[1726158776968,54.84841492,134.26,134.25,0.247778]
[1726158777265,74.84841492,134.26,134.25,0.247778]
[1726158777446,72.985774,134.26,134.25,0.247778]
[1726158778770,73.111264,134.26,134.25,0.247778]
[1726158779264,74.97422081,134.26,134.25,0.247778]
[1726158779950,74.84873081,134.26,134.25,0.247778]
[1726158780156,52.862284,134.22,134.21,0.247778]
[1726158780352,54.85107233,134.22,134.21,0.247778]
[1726158780551,54.97656233,134.22,134.21,0.247778]
[1726158780858,46.407864,134.22,134.21,0.247778]
[1726158781249,48.27108464,134.22,134.21,0.247778]
[1726158781448,25.89108464,134.22,134.21,0.247778]
[1726158782056,24.027864,134.22,134.21,0.247778]
[1726158783083,25.89116127,134.22,134.21,0.247778]
[1726158783584,74.97656127,134.22,134.21,0.247778]
[1726158787247,6.7071,134.19,134.17,0.247778]
[1726158787459,24.027864,134.18,134.17,0.247778]
[1726158787662,50.735264,134.18,134.17,0.247778]
[1726158787881,73.115264,134.18,134.17,0.247778]
[1726158789760,73.115264,134.18,134.13,0.247778]
[1726158789761,6.7088,134.16,134.13,0.247778]
[1726158789962,43.776884,134.14,134.13,0.247778]
[1726158790172,45.89211654,134.14,134.13,0.247778]
[1726158791176,52.60151654,134.14,134.13,0.247778]
[1726158791889,124.98151654,134.14,134.09,0.247778]
[1726158792101,26.7114,134.1,134.09,0.247778]
[1726158792258,0.25098,134.1,134.09,0.247778]
[1726158794265,24.027864,134.1,134.09,0.247778]
[1726158795364,73.119264,134.1,134.09,0.247778]
[1726158795685,50.739264,134.1,134.09,0.247778]
[1726158795983,52.60437612,134.1,134.09,0.247778]
[1726158796484,74.98437612,134.1,134.09,0.247778]
[1726158798487,52.60437612,134.1,134.09,0.247778]
[1726158798795,6.7105,134.12,134.09,0.247778]
[1726158799170,1.86475767,134.11,134.09,0.247778]
[1726158799375,1.86475223,134.1,134.09,0.247778]
[1726158799688,6.7105,134.12,134.09,0.247778]
[1726158799888,1.86478845,134.11,134.09,0.247778]
[1726158800068,25.64165547,134.1,134.09,0.247778]
[1726158800470,25.89263547,134.1,134.09,0.247778]
[1726158801092,24.027864,134.1,134.09,0.247778]
[1726158803065,45.89266216,134.1,134.09,0.247778]
[1726158804286,52.60406216,134.1,134.09,0.247778]
[1726158804566,24.027864,134.1,134.09,0.247778]
[1726158805382,23.902374,134.1,134.09,0.247778]
[1726158805585,25.76725046,134.1,134.09,0.247778]
[1726158806701,24.027864,134.1,134.09,0.247778]
[1726158806870,25.89273951,134.1,134.09,0.247778]
[1726158807789,24.027864,134.1,134.09,0.247778]
[1726158807992,16.07572076,134.15,134.09,16.784778]
[1726158808177,15.1308,134.18,134.09,16.784778]
[1726158808881,22.38,134.17,134.09,16.784778]
[1726158809200,6.7084,134.16,134.09,16.784778]
[1726158809374,1.86423727,134.15,134.1,6.1067]
[1726158809571,1.86410697,134.14,134.1,6.1067]
[1726158811190,23.776884,134.13,134.1,6.1067]
[1726158811500,1.86422839,134.12,134.1,6.1067]
[1726158812005,25.8920988,134.13,134.1,6.1067]
[1726158813096,24.027864,134.13,134.1,6.1067]
[1726158813328,0.25098,134.13,134.1,6.1067]
[1726158818385,2.11520811,134.13,134.1,6.1067]
[1726158818586,23.776884,134.12,134.1,6.1067]
[1726158818998,23.776884,134.1,134.09,16.784778]
[1726158821301,0.25098,134.13,134.09,16.784778]
[1726158822511,23.776884,134.12,134.09,16.784778]
[1726158823113,1.86434482,134.11,134.09,16.784778]
[1726158823987,23.776884,134.12,134.09,16.784778]
[1726158824922,24.027864,134.13,134.09,16.784778]
[1726158825524,23.776884,134.11,134.09,16.784778]
[1726158828419,23.776884,134.12,134.09,16.784778]
[1726158833942,1.86422424,134.11,134.09,0.247778]
[1726158834346,25.64127107,134.1,134.09,0.247778]
[1726158834551,25.89225107,134.1,134.09,0.247778]
[1726158835043,74.98365107,134.1,134.09,0.247778]
[1726158835861,6.7134,134.06,134.05,0.247778]
[1726158836058,8.82990178,134.06,134.05,0.247778]
[1726158836956,31.20990178,134.06,134.05,0.247778]
[1726158837240,8.82990178,134.06,134.05,0.247778]
[1726158837441,0.25098,134.06,134.05,0.2232316]
[1726158838028,24.027864,134.06,134.05,0.2232316]
[1726158841252,30.741264,134.06,134.05,0.2232316]
[1726158841450,53.121264,134.06,134.05,0.2232316]
[1726158843837,30.741264,134.06,134.05,0.2232316]
[1726158844233,24.027864,134.06,134.05,0.2232316]
[1726158846329,1.86538032,134.07,134.05,0.2232316]
[1726158846536,22.38,134.1,134.05,0.2232316]
[1726158847251,29.0915,134.1,134.05,0.2232316]
[1726158847568,3.90266233,134.14,134.05,23.66228218]
[1726158847727,5.76695497,134.14,134.06,16.1459]
[1726158847932,1.86429264,134.14,134.06,16.1459]
[1726158848252,8.57369264,134.14,134.06,16.1459]
[1726158848438,1.86445994,134.14,134.06,16.1459]
[1726158848637,8.57385994,134.14,134.06,16.1459]